bitfinex/quotes_BTCUSD_20251025
["timestamp","ask_amount","ask_price","bid_price","bid_amount"]
[1761389999367,1.696434,111640.0,111630.0,0.0037438]
[1761389999775,1.698434,111640.0,111630.0,0.0037438]
[1761390000418,1.484114,111640.0,111630.0,0.0037438]
[1761390000619,1.72260761,111640.0,111630.0,0.0037438]
[1761390006798,1.80769633,111640.0,111630.0,0.0037438]
[1761390007362,1.79769634,111640.0,111630.0,0.0037438]
[1761390007600,1.80769633,111640.0,111630.0,0.0037438]
[1761390007807,1.78352272,111640.0,111630.0,0.0037438]
[1761390013300,1.83160087,111640.0,111630.0,0.0037438]
[1761390017450,1.84160086,111640.0,111630.0,0.0037438]
[1761390028165,1.83160087,111640.0,111630.0,0.0037438]
[1761390028378,1.84160086,111640.0,111630.0,0.0037438]
[1761390029161,1.86095314,111640.0,111630.0,0.0037438]
[1761390040734,2.11085314,111640.0,111630.0,0.0037438]
[1761390053389,2.10085315,111640.0,111630.0,0.0037438]
[1761390053615,2.11085314,111640.0,111630.0,0.0037438]
[1761390054440,2.10085315,111640.0,111630.0,0.0037438]
[1761390054691,2.11085314,111640.0,111630.0,0.0037438]
[1761390058643,2.07880104,111640.0,111630.0,0.0037438]
[1761390060171,2.06880105,111640.0,111630.0,0.0037438]
[1761390060381,2.07880104,111640.0,111630.0,0.0037438]
[1761390063296,0.55536163,111620.0,111610.0,0.0004]
[1761390063513,1.3340508,111620.0,111610.0,0.0004]
[1761390064105,1.33763849,111620.0,111610.0,0.0004]
[1761390064535,1.33768751,111620.0,111610.0,0.0004]
[1761390064929,0.80527769,111610.0,111590.0,0.0004]
[1761390065127,1.70716574,111600.0,111590.0,0.0004]
[1761390065313,1.7086064,111600.0,111590.0,0.0004]
[1761390065723,1.71219492,111600.0,111590.0,0.0004]
[1761390066269,1.67994396,111600.0,111590.0,0.0004]
[1761390066962,1.5956318,111600.0,111590.0,0.0004]
[1761390067167,1.68545081,111600.0,111590.0,0.0004]
[1761390067368,1.88372644,111600.0,111590.0,0.0004]
[1761390067688,1.88472644,111600.0,111590.0,0.0004]
[1761390068330,1.94018371,111600.0,111590.0,1e-08]
[1761390068747,1.96437939,111600.0,111590.0,1e-08]
[1761390068954,1.96337939,111600.0,111590.0,1e-08]
[1761390069179,1.96326804,111600.0,111590.0,1e-08]
[1761390069393,1.93412843,111600.0,111590.0,1e-08]
[1761390069597,1.59465968,111600.0,111590.0,1e-08]
[1761390070226,1.62678013,111600.0,111590.0,1e-08]
[1761390070682,1.62378013,111600.0,111590.0,1e-08]
[1761390070892,1.27755359,111590.0,111580.0,1e-08]
[1761390071130,1.16919591,111590.0,111580.0,1e-08]
[1761390072185,1.19684784,111590.0,111580.0,1e-08]
[1761390072389,1.20184784,111590.0,111580.0,1e-08]
[1761390073219,1.17864153,111590.0,111580.0,1e-08]
[1761390073655,0.57542585,111580.0,111570.0,1e-08]
[1761390073864,1.63460438,111580.0,111570.0,1e-08]
[1761390074505,1.63819401,111580.0,111570.0,1e-08]
[1761390074926,1.638243,111580.0,111570.0,1e-08]
[1761390075099,1.641243,111580.0,111570.0,1e-08]
[1761390075344,1.61719227,111580.0,111570.0,1e-08]
[1761390076498,1.641243,111580.0,111570.0,1e-08]
[1761390077112,0.9623055,111580.0,111570.0,1e-08]
[1761390080688,0.8051055,111580.0,111570.0,1e-08]
[1761390080898,1.1990655,111580.0,111570.0,1e-08]
[1761390082209,1.2933755,111580.0,111570.0,1e-08]
[1761390082449,1.1990655,111580.0,111570.0,1e-08]
[1761390085286,1.23118627,111580.0,111570.0,1e-08]
[1761390088323,1.20713554,111580.0,111570.0,1e-08]
[1761390089364,1.25551198,111580.0,111570.0,1e-08]
[1761390091113,0.51155199,111580.0,111570.0,1e-08]
[1761390091346,0.88123478,111580.0,111570.0,1e-08]
[1761390091580,1.18911401,111580.0,111570.0,1e-08]
[1761390092027,0.79511401,111580.0,111570.0,1e-08]
[1761390092227,1.18911401,111580.0,111570.0,1e-08]
[1761390092876,0.78511402,111580.0,111570.0,1e-08]
[1761390093093,0.99979402,111580.0,111570.0,1e-08]
[1761390093390,1.03191479,111580.0,111570.0,1e-08]
[1761390094658,0.97096516,111580.0,111570.0,1e-08]
[1761390094961,1.02832516,111580.0,111570.0,1e-08]
[1761390095389,1.36779391,111580.0,111570.0,1e-08]
[1761390096366,1.02832516,111580.0,111570.0,1e-08]
[1761390097312,1.00426593,111580.0,111570.0,1e-08]
[1761390098398,1.00424151,111580.0,111570.0,1e-08]
[1761390099500,0.47372099,111580.0,111570.0,1e-08]
[1761390099723,0.65632022,111580.0,111570.0,1e-08]
[1761390099835,0.99632022,111580.0,111570.0,1e-08]
[1761390100069,0.90650121,111580.0,111570.0,1e-08]
[1761390100373,0.88234173,111580.0,111570.0,1e-08]
[1761390101621,1.22181048,111580.0,111570.0,1e-08]
[1761390102436,0.88234173,111580.0,111570.0,1e-08]
[1761390104818,1.22181048,111580.0,111570.0,1e-08]
[1761390109370,0.57780272,111580.0,111570.0,1e-08]
[1761390109577,0.79252272,111580.0,111570.0,1e-08]
[1761390110439,0.39555913,111580.0,111570.0,1e-08]
[1761390110649,0.15744899,111580.0,111570.0,0.19718562]
[1761390110857,4.899e-05,111580.0,111570.0,0.62647338]
[1761390111050,0.15744899,111580.0,111570.0,0.26907867]
[1761390112795,0.15744899,111580.0,111570.0,0.27107867]
[1761390113054,4.899e-05,111580.0,111570.0,0.27107867]
[1761390116935,4.899e-05,111580.0,111570.0,0.61054742]
[1761390117156,4.899e-05,111580.0,111570.0,0.27107867]
[1761390121025,4.899e-05,111580.0,111570.0,0.76794742]
[1761390121886,4.899e-05,111580.0,111570.0,0.79485265]
[1761390126475,4.899e-05,111580.0,111570.0,0.76794742]
[1761390128707,4.899e-05,111580.0,111570.0,0.81015388]
[1761390131793,4.899e-05,111580.0,111570.0,1.19182909]
[1761390132742,4.899e-05,111580.0,111570.0,1.24918909]
[1761390133214,4.899e-05,111580.0,111570.0,1.24718909]
[1761390133417,4.899e-05,111580.0,111570.0,1.25218909]
[1761390133846,4.899e-05,111580.0,111570.0,1.25318909]
[1761390136706,4.899e-05,111580.0,111570.0,1.25786667]
[1761390136916,4.899e-05,111580.0,111570.0,1.28476775]
[1761390138091,4.899e-05,111580.0,111570.0,1.67297303]
[1761390138945,4.899e-05,111580.0,111570.0,2.16749545]
[1761390139157,4.899e-05,111580.0,111570.0,2.18356387]
[1761390139369,4.899e-05,111580.0,111570.0,2.17856387]
[1761390139570,4.899e-05,111580.0,111570.0,2.18456387]
[1761390140011,4.899e-05,111580.0,111570.0,2.18656387]
[1761390140211,4.899e-05,111580.0,111570.0,2.27348467]
[1761390140415,4.899e-05,111580.0,111570.0,2.18414254]
[1761390140749,4.899e-05,111580.0,111570.0,2.18614254]
[1761390140960,4.899e-05,111580.0,111570.0,2.15293522]
[1761390141180,4.899e-05,111580.0,111570.0,2.21504715]
[1761390141587,4.899e-05,111580.0,111570.0,2.21704715]
[1761390141797,4.899e-05,111580.0,111570.0,2.22304715]
[1761390142276,4.899e-05,111580.0,111570.0,2.12273715]
[1761390142861,4e-05,111640.0,111630.0,0.1791633]
[1761390143089,8.911e-05,111640.0,111630.0,0.66857385]
[1761390143265,8.911e-05,111640.0,111630.0,0.65065752]
[1761390143905,8.911e-05,111640.0,111630.0,0.65165752]
[1761390144476,8.911e-05,111640.0,111630.0,1.03333273]
[1761390145412,8.911e-05,111640.0,111630.0,0.65165752]
[1761390145616,8.911e-05,111640.0,111630.0,0.65265752]
[1761390145774,8.911e-05,111640.0,111630.0,0.65065752]
[1761390146011,8.911e-05,111640.0,111630.0,0.65165752]
[1761390146235,8.911e-05,111640.0,111630.0,0.65265752]
[1761390146435,8.911e-05,111640.0,111630.0,0.65165752]
[1761390146850,8.911e-05,111640.0,111630.0,0.65265752]
[1761390151895,8.911e-05,111640.0,111630.0,0.27098231]
[1761390152153,8.911e-05,111640.0,111630.0,0.42838231]
[1761390152389,8.911e-05,111640.0,111630.0,0.81005752]
[1761390157583,8.911e-05,111640.0,111630.0,0.42838231]
[1761390157782,8.911e-05,111640.0,111630.0,0.27098231]
[1761390157985,8.911e-05,111640.0,111630.0,0.81005752]
[1761390168604,0.67992501,111660.0,111650.0,0.17913121]
[1761390168605,0.67951412,111660.0,111650.0,0.17913121]
[1761390168839,0.67951271,111660.0,111650.0,0.00049125]
[1761390169001,1.06118792,111660.0,111650.0,0.00049125]
[1761390169878,1.44286313,111660.0,111650.0,0.00049125]
[1761390170326,1.06118792,111660.0,111650.0,0.00049125]
[1761390170753,1.06218792,111660.0,111650.0,0.00049125]
[1761390171587,1.06118792,111660.0,111650.0,0.00049125]
[1761390172070,1.06318792,111660.0,111650.0,0.00049125]
[1761390172458,1.48104541,111660.0,111650.0,0.00049125]
[1761390173693,1.5051709,111660.0,111650.0,0.00049125]
[1761390174307,1.48104541,111660.0,111650.0,0.00049125]
[1761390179831,1.0993702,111660.0,111650.0,0.00049125]
[1761390188814,0.71769499,111660.0,111650.0,0.00049125]
[1761390189038,1.0993702,111660.0,111650.0,0.00049125]
[1761390190882,0.71769499,111660.0,111650.0,0.00049125]
[1761390191711,0.77501499,111660.0,111650.0,0.00049125]
[1761390193247,1.11398551,111660.0,111650.0,0.00049125]
[1761390197763,0.95662551,111660.0,111650.0,0.00049125]
[1761390198083,1.11382551,111660.0,111650.0,0.00049125]
[1761390198501,0.77485499,111660.0,111650.0,0.00049125]
[1761390199090,1.11382551,111660.0,111650.0,0.00049125]
[1761390199297,0.77485499,111660.0,111650.0,0.00049125]
[1761390202273,1.11382551,111660.0,111650.0,0.00049125]
[1761390219926,1.13658885,111660.0,111650.0,0.00049125]
[1761390220128,1.16071434,111660.0,111650.0,0.00049125]
[1761390220344,1.25053335,111660.0,111650.0,0.00049125]
[1761390220576,1.28270068,111660.0,111650.0,0.00049125]
[1761390221022,1.30959827,111660.0,111650.0,0.00049125]
[1761390222331,1.27743094,111660.0,111650.0,0.00049125]
[1761390238021,1.30959827,111660.0,111650.0,0.00049125]
[1761390239094,1.28547278,111660.0,111650.0,0.00049125]
[1761390239645,1.29547277,111660.0,111650.0,0.00049125]
[1761390239909,1.34372376,111660.0,111650.0,0.00049125]
[1761390246057,1.29547277,111660.0,111650.0,0.00049125]
[1761390246267,1.04818944,111660.0,111650.0,0.00049125]
[1761390246467,1.28682804,111660.0,111650.0,0.00049125]
[1761390246832,1.07234804,111660.0,111650.0,0.00049125]
[1761390247197,1.22950804,111660.0,111650.0,0.00049125]
[1761390247413,1.28682804,111660.0,111650.0,0.00049125]
[1761390247611,1.22950804,111660.0,111650.0,0.00049125]
[1761390247824,1.12966804,111660.0,111650.0,0.00049125]
[1761390248028,1.28682804,111660.0,111650.0,0.00049125]
[1761390249707,0.94785752,111660.0,111650.0,0.00049125]
[1761390249963,1.28682804,111660.0,111650.0,0.00049125]
[1761390250190,1.12966804,111660.0,111650.0,0.00049125]
[1761390250390,1.28682804,111660.0,111650.0,0.00049125]
[1761390250812,1.34447972,111660.0,111650.0,0.00049125]
[1761390251186,1.25466071,111660.0,111650.0,0.00049125]
[1761390251399,1.0076817,111660.0,111650.0,0.00049125]
[1761390251603,1.1648417,111660.0,111650.0,0.00049125]
[1761390252757,1.20725147,111660.0,111650.0,0.00049125]
[1761390253743,1.05009147,111660.0,111650.0,0.00049125]
[1761390253997,1.20725147,111660.0,111650.0,0.00049125]
[1761390254767,0.86762236,111660.0,111650.0,0.00049125]
[1761390254983,1.18346376,111660.0,111650.0,0.00049125]
[1761390257019,0.80208347,111660.0,111650.0,0.00049125]
[1761390257224,1.18346376,111660.0,111650.0,0.00049125]
[1761390258258,1.15656617,111660.0,111650.0,0.00049125]
[1761390284228,1.18345961,111660.0,111650.0,0.00049125]
[1761390291227,1.5648399,111660.0,111650.0,0.00049125]
[1761390314751,1.16530367,111660.0,111650.0,0.00049125]
[1761390316275,1.25512268,111660.0,111650.0,0.00049125]
[1761390332966,1.28729001,111660.0,111650.0,0.00049125]
[1761390333606,1.35343138,111660.0,111650.0,0.00049125]
[1761390334159,1.28729001,111660.0,111650.0,0.00049125]
[1761390337299,1.25512268,111660.0,111650.0,0.00049125]
[1761390338291,1.41086816,111660.0,111650.0,0.00049125]
[1761390338696,1.44303549,111660.0,111650.0,0.00049125]
[1761390340222,0.73374426,111660.0,111650.0,0.00049125]
[1761390340428,1.28721001,111660.0,111650.0,0.00049125]
[1761390340628,1.25504268,111660.0,111650.0,0.00049125]
[1761390341231,1.28721001,111660.0,111650.0,0.00049125]
[1761390346255,0.94814426,111660.0,111650.0,0.00049125]
[1761390346454,1.28721001,111660.0,111650.0,0.00049125]
[1761390350917,0.89082426,111660.0,111650.0,0.00049125]
[1761390351135,1.25504268,111660.0,111650.0,0.00049125]
[1761390352327,1.19772268,111660.0,111650.0,0.00049125]
[1761390352531,1.25504268,111660.0,111650.0,0.00049125]
[1761390356213,0.91597693,111660.0,111650.0,0.00049125]
[1761390356410,1.25504268,111660.0,111650.0,0.00049125]
[1761390359123,1.34486169,111660.0,111650.0,0.00049125]
[1761390365303,1.37702902,111660.0,111650.0,0.00049125]
[1761390376808,1.80093805,111660.0,111650.0,0.00049125]
[1761390385164,1.03796327,111660.0,111650.0,0.00049125]
[1761390385360,1.80093805,111660.0,111650.0,0.00049125]
[1761390398142,1.80096681,111660.0,111650.0,0.00049125]
[1761390403207,1.03799203,111660.0,111650.0,0.00049125]
[1761390403350,1.80096681,111660.0,111650.0,0.00049125]
[1761390404940,1.03799203,111660.0,111650.0,0.00049125]
[1761390405163,1.80096681,111660.0,111650.0,0.00049125]
[1761390411073,1.86708803,111660.0,111650.0,0.00049125]
[1761390413051,1.80096681,111660.0,111650.0,0.00049125]
[1761390426142,1.86804164,111660.0,111650.0,0.00049125]
[1761390432228,1.80096681,111660.0,111650.0,0.00049125]
[1761390438692,1.3770573,111660.0,111650.0,0.00049125]
[1761390441922,1.03799203,111660.0,111650.0,0.00049125]
[1761390442067,1.3770573,111660.0,111650.0,0.00049125]
[1761390444079,1.35286994,111660.0,111650.0,0.00049125]
[1761390444279,1.37705906,111660.0,111650.0,0.00049125]
[1761390450878,1.28724005,111660.0,111650.0,0.00049125]
[1761390451614,1.30517005,111660.0,111650.0,0.00049125]
[1761390451810,1.28724005,111660.0,111650.0,0.00049125]
[1761390453928,1.04034104,111660.0,111650.0,0.00049125]
[1761390454127,1.19738104,111660.0,111650.0,0.00049125]
[1761390459620,0.26777349,111660.0,111650.0,0.00049125]
[1761390459864,0.76484231,111660.0,111650.0,0.00049125]
[1761390460076,1.10484231,111660.0,111650.0,0.00049125]
[1761390462497,0.76577704,111660.0,111650.0,0.00049125]
[1761390462607,1.10484231,111660.0,111650.0,0.00049125]
[1761390471467,1.2308436,111660.0,111650.0,0.00049125]
[1761390474042,1.25503272,111660.0,111650.0,0.00049125]
[1761390480776,1.16521371,111660.0,111650.0,0.00049125]
[1761390495334,1.16525371,111660.0,111650.0,0.00049125]
[1761390500776,1.5890922,111660.0,111650.0,0.00049125]
[1761390510309,0.82618844,111660.0,111650.0,0.00049125]
[1761390510545,1.5890922,111660.0,111650.0,0.00049125]
[1761390515131,1.5890522,111660.0,111650.0,0.00049125]
[1761390516152,1.5317322,111660.0,111650.0,0.00049125]
[1761390516369,1.5890522,111660.0,111650.0,0.00049125]
[1761390517143,1.3747322,111660.0,111650.0,0.00049125]
[1761390517342,1.5890522,111660.0,111650.0,0.00049125]
[1761390518177,1.3747322,111660.0,111650.0,0.00049125]
[1761390518359,1.5890522,111660.0,111650.0,0.00049125]
[1761390519783,1.67887121,111660.0,111650.0,0.00049125]
[1761390523211,1.76869022,111660.0,111650.0,0.00049125]
[1761390526233,1.80085755,111660.0,111650.0,0.00049125]
[1761390527659,1.86743543,111660.0,111650.0,0.00049125]
[1761390527873,1.86743543,111660.0,111650.0,1e-08]
[1761390528116,1.8914973,111660.0,111650.0,1e-08]
[1761390528260,2.27301786,111660.0,111650.0,1e-08]
[1761390528459,2.25078184,111660.0,111650.0,1e-08]
[1761390529100,1.85932997,111660.0,111650.0,1e-08]
[1761390529660,1.85732997,111660.0,111650.0,1e-08]
[1761390530727,2.24878184,111660.0,111650.0,1e-08]
[1761390530928,1.86732996,111660.0,111650.0,1e-08]
[1761390531319,1.89954176,111660.0,111650.0,1e-08]
[1761390532131,2.28099364,111660.0,111650.0,1e-08]
[1761390533903,2.28799364,111660.0,111650.0,1e-08]
[1761390535894,2.25578184,111660.0,111650.0,1e-08]
[1761390536085,2.35008184,111660.0,111650.0,1e-08]
[1761390536295,2.28797738,111660.0,111650.0,1e-08]
[1761390542691,2.28797738,111660.0,111590.0,0.03203434]
[1761390542692,0.17921146,111600.0,111590.0,0.03203434]
[1761390542884,1.09915522,111600.0,111590.0,0.03252608]
[1761390543115,0.71770334,111600.0,111590.0,0.00049174]
[1761390543466,0.74460915,111600.0,111590.0,0.00049174]
[1761390544040,0.74460915,111600.0,111590.0,0.00449174]
[1761390544253,0.74460915,111600.0,111590.0,0.00249174]
[1761390544692,0.74460915,111600.0,111590.0,0.00049174]
[1761390548144,0.74599686,111600.0,111590.0,0.00049174]
[1761390560940,0.36454498,111600.0,111590.0,0.00049174]
[1761390585624,0.33763917,111600.0,111590.0,0.00049174]
[1761390590447,0.18059917,111600.0,111590.0,0.00049174]
[1761390590644,0.33763917,111600.0,111590.0,0.00049174]
[1761390593021,0.18059917,111600.0,111590.0,0.00049174]
[1761390593229,0.33763917,111600.0,111590.0,0.00049174]
[1761390594782,0.18059917,111600.0,111590.0,0.00049174]
[1761390594912,0.33763917,111600.0,111590.0,0.00049174]
[1761390595786,0.18059917,111600.0,111590.0,0.00049174]
[1761390595995,0.33763917,111600.0,111590.0,0.00049174]
[1761390598954,0.00138771,111600.0,111590.0,0.17971926]
[1761390599160,0.33763917,111600.0,111590.0,0.26953827]
[1761390600475,0.15842771,111600.0,111590.0,0.26953827]
[1761390600838,0.33763917,111600.0,111590.0,0.26953827]
[1761390602198,0.33763917,111600.0,111590.0,0.09031075]
[1761390602448,0.33763917,111600.0,111590.0,0.26953827]
[1761390604302,0.33763917,111600.0,111590.0,0.09031075]
[1761390625092,0.33763917,111600.0,111590.0,0.26953827]
[1761390625870,0.15842771,111600.0,111590.0,0.26953827]
[1761390626085,0.33763917,111600.0,111590.0,0.26953827]
[1761390633136,0.33763917,111600.0,111590.0,0.65122602]
[1761390633772,0.00138771,111600.0,111590.0,0.65122602]
[1761390633985,0.15842771,111600.0,111590.0,0.65122602]
[1761390636023,0.00138771,111600.0,111590.0,0.65122602]
[1761390636236,0.00138771,111600.0,111590.0,1.22198811]
[1761390636713,0.00138771,111600.0,111590.0,1.24888852]
[1761390637132,0.00138771,111600.0,111590.0,0.91525229]
[1761390637357,0.00138771,111600.0,111590.0,1.25588852]
[1761390637738,0.00138771,111600.0,111590.0,0.87420077]
[1761390638867,0.00138771,111600.0,111590.0,0.87520077]
[1761390639092,0.00138771,111600.0,111590.0,1.25688852]
[1761390639855,0.00138771,111600.0,111590.0,1.31424852]
[1761390640055,0.00138771,111600.0,111590.0,0.93256077]
[1761390644048,0.00138771,111600.0,111590.0,0.33647302]
[1761390644256,0.00138771,111600.0,111590.0,0.87520077]
[1761390665233,0.00138771,111600.0,111590.0,0.92325229]
[1761390666116,0.00138771,111600.0,111590.0,0.89121795]
[1761390666322,0.72681649,111630.0,111610.0,0.17917958]
[1761390666489,0.72681649,111630.0,111610.0,0.66860588]
[1761390666677,1.09371576,111630.0,111620.0,0.17917935]
[1761390666879,0.71202801,111630.0,111620.0,0.17917935]
[1761390667127,1.09371576,111630.0,111620.0,0.17917935]
[1761390667775,0.71202801,111630.0,111620.0,0.17917935]
[1761390667882,1.09371576,111630.0,111620.0,0.17917935]
[1761390668087,1.09371576,111630.0,111620.0,0.18117935]
[1761390668497,0.71202801,111630.0,111620.0,0.18117935]
[1761390670855,0.37202801,111630.0,111620.0,0.18117935]
[1761390671812,0.02689927,111630.0,111620.0,0.5628671]
[1761390672011,0.67620922,111640.0,111630.0,0.1791633]
[1761390672432,0.70310649,111640.0,111630.0,0.1791633]
[1761390673188,0.70310649,111640.0,111630.0,0.17931071]
[1761390674134,0.70310649,111640.0,111630.0,0.18331071]
[1761390677023,0.70310649,111640.0,111630.0,0.00414741]
[1761390677975,1.08479424,111640.0,111630.0,0.00414741]
[1761390684911,0.70310649,111640.0,111630.0,0.00414741]
[1761390696423,1.04219147,111640.0,111630.0,0.00414741]
[1761390699676,0.70310649,111640.0,111630.0,0.00414741]
[1761390699872,1.59709675,111640.0,111630.0,0.00414741]
[1761390700208,1.25801177,111640.0,111630.0,0.00414741]
[1761390701448,1.16819276,111640.0,111630.0,0.00414741]
[1761390701807,1.16819276,111640.0,111630.0,0.00014741]
[1761390702127,1.16919276,111640.0,111630.0,0.00014741]
[1761390708358,1.50827774,111640.0,111630.0,0.00014741]
[1761390710973,1.56559774,111640.0,111630.0,0.00014741]
[1761390711226,1.65541675,111640.0,111630.0,0.00014741]
[1761390712361,1.31633177,111640.0,111630.0,0.00014741]
[1761390716357,1.34051012,111640.0,111630.0,0.00014741]
[1761390718160,1.12619012,111640.0,111630.0,0.00014741]
[1761390718364,1.34051012,111640.0,111630.0,0.00014741]
[1761390722194,1.00142514,111640.0,111630.0,0.00014741]
[1761390722393,1.34051012,111640.0,111630.0,0.00014741]
[1761390726520,1.31361285,111640.0,111630.0,0.00014741]
[1761390728459,1.65269783,111640.0,111630.0,0.00014741]
[1761390728684,1.31361285,111640.0,111630.0,0.00014741]
[1761390732297,1.65269783,111640.0,111630.0,0.00014741]
[1761390738153,1.31361285,111640.0,111630.0,0.00014741]
[1761390744412,1.34580839,111640.0,111630.0,0.00014741]
[1761390746843,1.76993575,111640.0,111630.0,0.00014741]
[1761390749235,1.79400839,111640.0,111630.0,0.00014741]
[1761390749624,1.82091143,111640.0,111630.0,0.00014741]
[1761390751424,1.77266044,111640.0,111630.0,0.00014741]
[1761390754952,1.77266044,111640.0,111630.0,1e-08]
[1761390755152,1.82091143,111640.0,111630.0,1e-08]
[1761390772381,1.91522143,111640.0,111630.0,1e-08]
[1761390772585,1.82091143,111640.0,111630.0,1e-08]
[1761390776482,2.19032204,111640.0,111630.0,1e-08]
[1761390776688,0.17924359,111580.0,111570.0,0.25954954]
[1761390776895,0.39364359,111580.0,111570.0,0.30180877]
[1761390777272,0.39364359,111580.0,111570.0,0.12254912]
[1761390778470,0.39364359,111580.0,111570.0,0.13054912]
[1761390778651,0.39364359,111580.0,111570.0,0.12254912]
[1761390779076,0.39364359,111580.0,111570.0,0.12854912]
[1761390779437,0.39364359,111580.0,111570.0,0.12954912]
[1761390781542,0.77524976,111580.0,111570.0,0.12954912]
[1761390781967,0.39364359,111580.0,111570.0,0.30880877]
[1761390783701,0.39364359,111580.0,111570.0,0.12954912]
[1761390784443,0.39364359,111580.0,111570.0,0.30880877]
[1761390788196,0.39364359,111580.0,111570.0,0.2765704]
[1761390795199,0.39364359,111580.0,111570.0,0.30880877]
[1761390800332,0.39364359,111580.0,111570.0,0.2765704]
[1761390804398,0.39364359,111580.0,111570.0,0.30880877]
[1761390806161,0.39364359,111580.0,111570.0,5.30880877]
[1761390808108,0.39364359,111580.0,111570.0,5.2765704]
[1761390813318,0.2144,111580.0,111570.0,5.2765704]
[1761390814868,0.15704,111580.0,111570.0,5.2765704]
[1761390815699,0.33628359,111580.0,111570.0,5.2765704]
[1761390824939,0.15704,111580.0,111570.0,5.2765704]
[1761390832916,0.17922752,111590.0,111570.0,5.2765704]
[1761390833167,0.15704,111580.0,111570.0,5.2765704]
[1761390833697,0.15704,111580.0,111570.0,5.2705704]
[1761390834114,0.15704,111580.0,111570.0,5.2765704]
[1761390834325,0.15704,111580.0,111570.0,5.2705704]
[1761390834522,0.15704,111580.0,111570.0,5.2755704]
[1761390834993,4e-05,111580.0,111570.0,5.2755704]
[1761390835197,0.15708,111580.0,111570.0,5.2755704]
[1761390835597,4e-05,111580.0,111570.0,5.2755704]
[1761390835766,0.15708,111580.0,111570.0,5.2765704]
[1761390836361,0.15708,111580.0,111570.0,5.2755704]
[1761390836569,0.15708,111580.0,111570.0,5.2765704]
[1761390860932,0.15708,111580.0,111570.0,5.30347974]
[1761390870734,0.15708,111580.0,111570.0,5.6852347]
[1761390873568,0.15708,111580.0,111570.0,5.30347974]
[1761390873747,0.15708,111580.0,111570.0,5.6852347]
[1761390877164,0.33632359,111580.0,111570.0,5.6852347]
[1761390890672,0.15708,111580.0,111570.0,5.6852347]
[1761390890963,0.15708,111580.0,111570.0,5.30347974]
[1761390891128,0.15708,111580.0,111570.0,5.6852347]
[1761390892706,0.15708,111580.0,111570.0,5.30347974]
[1761390892986,0.15708,111580.0,111570.0,5.6852347]
[1761390893936,4e-05,111580.0,111570.0,5.6852347]
[1761390894116,0.15708,111580.0,111570.0,5.6852347]
[1761390894269,0.15708,111580.0,111570.0,5.30347974]
[1761390894457,0.15708,111580.0,111570.0,5.6852347]
[1761390896570,0.15708,111580.0,111570.0,5.30347974]
[1761390896828,0.15708,111580.0,111570.0,5.6852347]
[1761390902169,0.33632359,111580.0,111570.0,5.6852347]
[1761390904356,0.33632359,111580.0,111570.0,5.30347974]
[1761390904566,0.33632359,111580.0,111570.0,5.6852347]
[1761390904783,0.33632359,111580.0,111570.0,5.30347974]
[1761390913408,0.33632359,111580.0,111570.0,5.6852347]
[1761390924956,0.33782359,111580.0,111570.0,5.6852347]
[1761390928689,0.33782359,111580.0,111570.0,5.30347974]
[1761390929077,0.33782359,111580.0,111570.0,5.6852347]
[1761390931130,0.33782359,111580.0,111570.0,5.30347974]
[1761390931331,0.33922359,111580.0,111570.0,5.6852347]
[1761390932793,0.15998,111580.0,111570.0,5.30347974]
[1761390934111,0.33922359,111580.0,111570.0,5.30347974]
[1761390937749,0.00294,111580.0,111570.0,5.30347974]
[1761390937945,0.15994,111580.0,111570.0,5.30347974]
[1761390941570,0.33918359,111580.0,111570.0,5.30347974]
[1761390945704,0.15994,111580.0,111570.0,5.30347974]
[1761390947355,0.33918359,111580.0,111570.0,5.30347974]
[1761390951388,0.33989724,111580.0,111570.0,5.30347974]
[1761390962477,0.00365365,111580.0,111570.0,5.30347974]
[1761390962713,0.16065365,111580.0,111570.0,5.64284276]
[1761390963143,0.16065365,111580.0,111570.0,5.30347974]
[1761390985103,0.00365365,111580.0,111570.0,5.64284276]
[1761390985314,0.00365365,111580.0,111570.0,5.79984276]
[1761390985658,0.00365365,111580.0,111570.0,5.84984276]
[1761390989474,0.00365365,111580.0,111570.0,5.51047974]
[1761390989691,0.00365365,111580.0,111570.0,5.84984276]
[1761390990871,0.18289724,111580.0,111570.0,5.51047974]
[1761390992675,0.18289724,111580.0,111570.0,5.8922218]
[1761390998527,0.18289724,111580.0,111570.0,5.7352218]
[1761391000611,0.00365365,111580.0,111570.0,5.7352218]
[1761391006012,0.18289724,111580.0,111570.0,5.7352218]
[1761391008851,0.00365365,111580.0,111570.0,5.7352218]
[1761391011695,0.00365365,111580.0,111570.0,5.35347974]
[1761391012125,0.00365365,111580.0,111570.0,5.7352218]
[1761391014269,0.00365365,111580.0,111570.0,5.35347974]
[1761391014639,0.00365365,111580.0,111570.0,5.7352218]
[1761391014844,0.0034573,111580.0,111570.0,5.7352218]
[1761391018996,0.0034573,111580.0,111570.0,5.35347974]
[1761391019229,0.0034573,111580.0,111570.0,5.7352218]
[1761391025602,0.0034573,111580.0,111570.0,5.35347974]
[1761391025756,0.0034573,111580.0,111570.0,5.7352218]
[1761391027344,0.0034573,111580.0,111570.0,5.35347974]
[1761391027545,0.0034573,111580.0,111570.0,5.7352218]
[1761391045542,0.0034573,111580.0,111570.0,6.11696386]
[1761391045771,0.0034573,111580.0,111570.0,6.25750774]
[1761391045982,0.0034573,111580.0,111570.0,6.59750774]
[1761391046192,0.0034573,111580.0,111570.0,6.56526937]
[1761391046393,0.0034573,111580.0,111570.0,6.56994706]
[1761391046819,0.0034573,111580.0,111570.0,6.50869307]
[1761391047234,0.0034573,111580.0,111570.0,6.53487686]
[1761391047516,0.0034573,111580.0,111570.0,6.53587686]
[1761391047725,0.0034573,111580.0,111570.0,6.54387686]
[1761391047924,0.0034573,111580.0,111570.0,6.53787686]
[1761391048155,0.0034573,111580.0,111570.0,6.54787686]
[1761391054859,0.0034573,111580.0,111570.0,6.12353013]
[1761391057134,0.0034573,111580.0,111570.0,6.07547861]
[1761391062452,0.0034573,111580.0,111570.0,6.10134633]
[1761391063895,1e-08,111580.0,111570.0,6.1828915]
[1761391066362,1e-08,111580.0,111570.0,6.1475286]
[1761391067403,1e-08,111580.0,111570.0,6.2972286]
[1761391075128,1e-08,111580.0,111570.0,6.24917708]
[1761391085252,1e-08,111580.0,111570.0,6.31324577]
[1761391087124,1e-08,111580.0,111570.0,6.37056577]
[1761391092433,1e-08,111580.0,111570.0,6.36056578]
[1761391092633,1e-08,111580.0,111570.0,6.45488578]
[1761391092875,1e-08,111580.0,111570.0,6.37056577]
[1761391095756,1e-08,111580.0,111570.0,6.43080497]
[1761391096729,1e-08,111580.0,111570.0,6.42780497]
[1761391097145,1e-08,111580.0,111570.0,6.42980497]
[1761391097549,1e-08,111580.0,111570.0,6.76894236]
[1761391097764,1e-08,111580.0,111570.0,6.42980497]
[1761391097974,1e-08,111580.0,111570.0,6.76894236]
[1761391098466,1e-08,111580.0,111570.0,6.41980497]
[1761391098687,1e-08,111580.0,111570.0,6.36173628]
[1761391098909,1e-08,111580.0,111570.0,6.35573628]
[1761391099119,1e-08,111580.0,111570.0,6.36273628]
[1761391099323,1e-08,111580.0,111570.0,6.42510202]